[Event "South Island Championships 2023"]
[Site "Oamaru, New Zealand"]
[Date "2023.09.28"]
[Round "3.5"]
[White "McNabb, Matthew D"]
[Black "Gold, Hamish R"]
[Result "1-0"]
[TimeControl "90 + 30"]
[WhiteFideId "4300823"]
[BlackFideId "4301579"]
[WhiteElo "2236"]
[BlackElo "1758"]

1. Nf3 {[%clk 01:30:57]} {[%emt 00:00:02]} d6 {[%clk 01:29:58]} {[%emt
00:01:01]} 2. d4 {[%clk 01:31:19]} {[%emt 00:00:09]} Bg4 {[%clk 01:29:32]}
{[%emt 00:00:56]} 3. c3 {[%clk 01:28:22]} {[%emt 00:03:27]} Nd7 {[%clk
01:26:09]} {[%emt 00:03:52]} 4. Qb3 {[%clk 01:28:26]} {[%emt 00:00:27]} Bxf3
{[%clk 01:25:47]} {[%emt 00:00:52]} 5. exf3 {[%clk 01:28:19]} {[%emt 00:00:38]}
b6 {[%clk 01:23:52]} {[%emt 00:02:23]} 6. Bd3 {[%clk 01:24:08]} {[%emt
00:04:42]} e5 {[%clk 01:18:10]} {[%emt 00:06:11]} 7. O-O {[%clk 01:22:26]}
{[%emt 00:02:13]} c6 {[%clk 01:08:14]} {[%emt 00:10:26]} 8. Re1 {[%clk
01:16:51]} {[%emt 00:06:05]} Be7 {[%clk 01:05:42]} {[%emt 00:03:02]} 9. Nd2
{[%clk 01:04:14]} {[%emt 00:13:07]} Ngf6 {[%clk 01:04:36]} {[%emt 00:01:36]} 10.
Nf1 {[%clk 00:53:38]} {[%emt 00:11:06]} O-O {[%clk 01:00:09]} {[%emt 00:04:57]}
11. Ng3 {[%clk 00:51:47]} {[%emt 00:02:22]} Re8 {[%clk 00:57:36]} {[%emt
00:03:01]} 12. Bd2 {[%clk 00:49:26]} {[%emt 00:02:52]} Qc7 {[%clk 00:55:46]}
{[%emt 00:02:19]} 13. Rac1 {[%clk 00:49:39]} {[%emt 00:00:18]} Rac8 {[%clk
00:55:46]} {[%emt 00:00:29]} 14. Bb1 {[%clk 00:49:13]} {[%emt 00:00:57]} Bf8
{[%clk 00:53:09]} {[%emt 00:03:06]} 15. dxe5 {[%clk 00:47:39]} {[%emt
00:02:05]} dxe5 {[%clk 00:50:31]} {[%emt 00:03:08]} 16. c4 {[%clk 00:47:22]}
{[%emt 00:00:48]} Nc5 {[%clk 00:44:06]} {[%emt 00:06:54]} 17. Qc2 {[%clk
00:46:03]} {[%emt 00:01:49]} Ne6 {[%clk 00:43:32]} {[%emt 00:01:02]} 18. Nh5
{[%clk 00:41:28]} {[%emt 00:05:07]} e4 {[%clk 00:33:10]} {[%emt 00:10:52]} 19.
Nxf6+ {[%clk 00:41:53]} {[%emt 00:00:06]} gxf6 {[%clk 00:33:07]} {[%emt
00:00:32]} 20. Rxe4 {[%clk 00:37:15]} {[%emt 00:05:08]} Bd6 {[%clk 00:30:16]}
{[%emt 00:03:20]} 21. Bh6 {[%clk 00:34:07]} {[%emt 00:03:39]} Bxh2+ {[%clk
00:28:20]} {[%emt 00:02:26]} 22. Kh1 {[%clk 00:34:21]} {[%emt 00:00:15]} Bf4
{[%clk 00:20:04]} {[%emt 00:08:46]} 23. Rxf4 {[%clk 00:33:51]} {[%emt
00:01:01]} Ng5 {[%clk 00:17:33]} {[%emt 00:03:02]} 24. Rg4 {[%clk 00:33:31]}
{[%emt 00:00:49]} Qd7 {[%clk 00:16:42]} {[%emt 00:01:21]} 25. Qxh7# {[%clk
00:33:21]} {[%emt 00:00:10]} 1-0

[Event "South Island Championships 2023"]
[Site "Oamaru, New Zealand"]
[Date "2023.09.28"]
[Round "3.9"]
[White "Tao, Junqing Jerome"]
[Black "Malcolm, Leo"]
[Result "1-0"]
[TimeControl "90 + 30"]
[WhiteFideId "4313895"]
[BlackFideId "4317408"]
[WhiteElo "1634"]
[BlackElo "1876"]

1. e4 {[%clk 01:30:56]} {[%emt 00:00:03]} e5 {[%clk 01:30:53]} {[%emt
00:00:07]} 2. Nf3 {[%clk 01:31:23]} {[%emt 00:00:03]} Nc6 {[%clk 01:31:18]}
{[%emt 00:00:05]} 3. d4 {[%clk 01:31:39]} {[%emt 00:00:14]} exd4 {[%clk
01:30:53]} {[%emt 00:00:56]} 4. Bc4 {[%clk 01:32:04]} {[%emt 00:00:06]} Nf6
{[%clk 01:31:12]} {[%emt 00:00:10]} 5. e5 {[%clk 01:32:27]} {[%emt 00:00:07]}
d5 {[%clk 01:31:37]} {[%emt 00:00:05]} 6. Bb5 {[%clk 01:32:53]} {[%emt
00:00:04]} Ne4 {[%clk 01:31:34]} {[%emt 00:00:33]} 7. Nxd4 {[%clk 01:33:12]}
{[%emt 00:00:11]} Bc5 {[%clk 01:31:13]} {[%emt 00:00:50]} 8. Be3 {[%clk
01:31:36]} {[%emt 00:02:07]} O-O {[%clk 01:30:54]} {[%emt 00:00:49]} 9. Nxc6
{[%clk 01:30:35]} {[%emt 00:01:31]} bxc6 {[%clk 01:29:23]} {[%emt 00:02:01]} 10.
Bxc5 {[%clk 01:31:00]} {[%emt 00:00:05]} Bb7 {[%clk 01:10:00]} {[%emt
00:19:52]} 11. Bxf8 {[%clk 01:31:11]} {[%emt 00:00:19]} Qxf8 {[%clk 01:10:22]}
{[%emt 00:00:08]} 12. Bd3 {[%clk 01:31:23]} {[%emt 00:00:19]} Qb4+ {[%clk
01:10:34]} {[%emt 00:00:18]} 13. Nd2 {[%clk 01:31:34]} {[%emt 00:00:19]} 1-0

[Event "South Island Championships 2023"]
[Site "Oamaru, New Zealand"]
[Date "????.??.??"]
[Round "4.3"]
[White "Carpinter, Anthony L"]
[Black "McNabb, Matthew D"]
[Result "0-1"]
[TimeControl "90 + 30"]
[WhiteFideId "4300238"]
[BlackFideId "4300823"]
[WhiteElo "2217"]
[BlackElo "2236"]

1. Nf3 {[%clk 01:30:17]} {[%emt 00:00:43]} d5 {[%clk 01:30:57]} {[%emt
00:00:04]} 2. e3 {[%clk 01:30:24]} {[%emt 00:00:23]} Nf6 {[%clk 01:30:50]}
{[%emt 00:00:38]} 3. c4 {[%clk 01:30:26]} {[%emt 00:00:27]} e6 {[%clk
01:31:16]} {[%emt 00:00:04]} 4. Nc3 {[%clk 01:30:30]} {[%emt 00:00:26]} c5
{[%emt 00:02:53]} 5. cxd5 {[%clk 01:30:34]} {[%emt 00:00:02]} exd5 {[%clk
01:29:38]} {[%emt 00:00:09]} 6. d4 {[%clk 01:30:36]} {[%emt 00:00:27]} Nc6
{[%clk 01:28:52]} {[%emt 00:01:16]} 7. Be2 {[%clk 01:28:25]} {[%emt 00:02:41]}
Be6 {[%clk 01:26:59]} {[%emt 00:02:24]} 8. O-O {[%clk 01:26:50]} {[%emt
00:02:04]} c4 {[%clk 01:25:20]} {[%emt 00:02:09]} 9. Ne5 {[%clk 01:21:02]}
{[%emt 00:06:18]} Bb4 {[%emt 00:20:16]} 10. Nxc6 {[%clk 01:03:31]} bxc6 {[%clk
01:23:54]} {[%emt 00:00:11]} 11. Bf3 {[%clk 01:02:43]} {[%emt 00:01:17]} Bxc3
{[%clk 01:22:19]} {[%emt 00:02:05]} 12. bxc3 {[%clk 01:03:03]} {[%emt
00:00:08]} O-O {[%clk 01:22:35]} {[%emt 00:00:15]} 13. Qc2 {[%clk 01:01:32]}
{[%emt 00:02:02]} Qa5 {[%clk 01:10:59]} {[%emt 00:12:07]} 14. Bd2 {[%clk
00:46:28]} {[%emt 00:15:33]} Rab8 {[%clk 00:56:44]} {[%emt 00:14:45]} 15. Rab1
{[%clk 00:46:16]} {[%emt 00:00:42]} Rb6 {[%emt 00:07:01]} 16. Rb4 {[%clk
00:43:36]} Rfb8 {[%clk 00:34:56]} {[%emt 00:18:57]} 17. Rfb1 {[%clk 00:36:10]}
{[%emt 00:07:56]} c5 {[%clk 00:34:16]} {[%emt 00:01:11]} 18. dxc5 {[%clk
00:34:22]} {[%emt 00:02:17]} Qxc5 {[%clk 00:33:58]} {[%emt 00:00:48]} 19. h3
{[%clk 00:26:48]} {[%emt 00:08:04]} Ne4 {[%clk 00:22:39]} {[%emt 00:11:49]} 20.
R1b2 {[%clk 00:23:23]} {[%emt 00:03:54]} Bf5 {[%clk 00:22:08]} {[%emt
00:01:01]} 21. Qd1 {[%clk 00:23:44]} {[%emt 00:00:09]} Nxd2 {[%clk 00:10:08]}
{[%emt 00:12:30]} 22. Qxd2 {[%clk 00:15:57]} {[%emt 00:08:17]} Rxb4 {[%clk
00:10:29]} {[%emt 00:00:10]} 23. Rxb4 {[%clk 00:16:20]} {[%emt 00:00:07]} Rxb4
{[%clk 00:10:48]} {[%emt 00:00:11]} 24. cxb4 {[%clk 00:16:40]} {[%emt
00:00:09]} c3 {[%clk 00:10:51]} {[%emt 00:00:28]} 25. bxc5 {[%clk 00:16:54]}
{[%emt 00:00:15]} cxd2 {[%clk 00:11:18]} {[%emt 00:00:04]} 26. Bd1 {[%clk
00:17:14]} {[%emt 00:00:10]} Kf8 {[%clk 00:11:00]} {[%emt 00:00:48]} 27. f3
{[%clk 00:15:01]} {[%emt 00:02:43]} Ke7 {[%clk 00:09:38]} {[%emt 00:01:52]} 28.
Kf2 {[%clk 00:14:55]} {[%emt 00:00:35]} Bd3 {[%clk 00:09:09]} {[%emt 00:01:00]}
29. Ba4 {[%clk 00:15:05]} {[%emt 00:00:20]} Bb5 {[%clk 00:08:22]} {[%emt
00:01:17]} 30. Bc2 {[%clk 00:11:02]} {[%emt 00:04:32]} Kd7 {[%clk 00:07:40]}
{[%emt 00:01:12]} 31. e4 {[%clk 00:05:01]} {[%emt 00:06:31]} d4 {[%clk
00:08:04]} {[%emt 00:00:07]} 0-1

[Event "South Island Championships 2023"]
[Site "Oamaru, New Zealand"]
[Date "????.??.??"]
[Round "4.7"]
[White "Dolejs, Dan"]
[Black "Christie, Richie"]
[Result "0-1"]
[TimeControl "90 + 30"]
[WhiteFideId "4301692"]
[BlackFideId "4307470"]
[WhiteElo "1800"]
[BlackElo "1927"]

1. b4 {[%clk 01:30:56]} {[%emt 00:00:03]} d5 {[%clk 01:29:19]} {[%emt
00:01:42]} 2. Bb2 {[%clk 01:30:58]} {[%emt 00:00:27]} Bf5 {[%clk 01:28:47]}
{[%emt 00:01:01]} 3. e3 {[%clk 01:29:31]} {[%emt 00:01:58]} e6 {[%clk
01:28:58]} {[%emt 00:00:20]} 4. Nf3 {[%clk 01:28:23]} {[%emt 00:01:36]} Nf6
{[%clk 01:29:09]} {[%emt 00:00:21]} 5. a3 {[%clk 01:27:59]} {[%emt 00:00:53]}
Bd6 {[%clk 01:26:50]} {[%emt 00:02:49]} 6. Bb5+ {[%clk 01:26:45]} {[%emt
00:01:44]} c6 {[%clk 01:27:12]} {[%emt 00:00:08]} 7. Bd3 {[%clk 01:27:09]}
{[%emt 00:00:06]} Bg6 {[%clk 01:26:19]} {[%emt 00:01:24]} 8. O-O {[%clk
01:22:39]} {[%emt 00:04:51]} Nbd7 {[%clk 01:26:48]} 9. Nc3 {[%clk 01:22:39]}
{[%emt 00:00:39]} e5 {[%clk 01:23:26]} {[%emt 00:03:53]} 10. Bxg6 {[%clk
01:19:07]} {[%emt 00:03:27]} hxg6 {[%clk 01:23:48]} {[%emt 00:00:44]} 11. Ng5
{[%clk 01:12:24]} {[%emt 00:07:11]} e4 {[%clk 01:16:52]} {[%emt 00:07:28]} 12.
f4 {[%clk 01:10:22]} {[%emt 00:02:32]} exf3 {[%clk 01:14:12]} {[%emt 00:03:10]}
13. Nxf3 {[%clk 01:10:27]} {[%emt 00:00:24]} Ne5 {[%clk 01:02:47]} {[%emt
00:11:55]} 14. g3 {[%clk 01:08:30]} {[%emt 00:02:26]} Qd7 {[%clk 00:57:00]}
{[%emt 00:06:18]} 15. b5 {[%clk 01:01:15]} {[%emt 00:07:45]} Qh3 {[%clk
00:54:24]} {[%emt 00:03:06]} 16. Qe2 {[%clk 01:00:15]} {[%emt 00:01:29]} Nxf3+
{[%clk 00:51:35]} {[%emt 00:03:21]} 17. Rxf3 {[%clk 01:00:34]} {[%emt
00:00:10]} Ng4 {[%clk 00:50:41]} {[%emt 00:01:24]} 18. bxc6 {[%clk 00:58:57]}
{[%emt 00:02:07]} bxc6 {[%clk 00:49:21]} {[%emt 00:01:51]} 19. e4 {[%clk
00:54:23]} {[%emt 00:05:02]} Bc5+ {[%clk 00:48:52]} {[%emt 00:01:00]} 20. Re3
{[%clk 00:52:51]} {[%emt 00:02:01]} Bxe3+ {[%clk 00:32:37]} {[%emt 00:16:46]}
21. dxe3 {[%clk 00:53:08]} {[%emt 00:00:12]} Rb8 {[%clk 00:27:34]} {[%emt
00:05:35]} 22. Na4 {[%clk 00:46:10]} {[%emt 00:07:28]} dxe4 {[%clk 00:26:44]}
{[%emt 00:01:20]} 23. Bxg7 {[%clk 00:45:38]} {[%emt 00:01:00]} Qxh2+ {[%clk
00:26:25]} {[%emt 00:00:51]} 24. Qxh2 {[%clk 00:45:36]} {[%emt 00:00:21]} Rxh2
{[%clk 00:26:48]} {[%emt 00:00:17]} 25. c3 {[%clk 00:39:26]} {[%emt 00:06:40]}
Rd2 {[%clk 00:25:32]} {[%emt 00:01:46]} 26. Bd4 {[%clk 00:39:05]} {[%emt
00:00:51]} Nh2 {[%clk 00:24:32]} {[%emt 00:01:30]} 27. Bf6 {[%clk 00:35:01]}
{[%emt 00:04:32]} Nf3+ {[%clk 00:24:53]} {[%emt 00:00:11]} 28. Kf1 {[%clk
00:35:14]} {[%emt 00:00:16]} Rb5 {[%clk 00:24:55]} {[%emt 00:00:28]} 29. g4
{[%clk 00:32:46]} {[%emt 00:02:59]} Ra5 {[%clk 00:17:47]} {[%emt 00:07:39]} 30.
Rb1 {[%clk 00:29:12]} {[%emt 00:04:03]} Rxa4 {[%clk 00:17:17]} {[%emt
00:01:01]} 31. Rb8+ {[%clk 00:29:31]} {[%emt 00:00:10]} Kd7 {[%clk 00:17:46]}
{[%emt 00:00:01]} 32. g5 {[%clk 00:26:06]} {[%emt 00:03:55]} Rxa3 {[%clk
00:17:18]} {[%emt 00:00:59]} 33. Rb7+ {[%clk 00:24:33]} {[%emt 00:02:02]} Kc8
{[%clk 00:17:46]} {[%emt 00:00:02]} 34. Rb1 {[%clk 00:24:53]} {[%emt 00:00:09]}
Raa2 {[%clk 00:18:07]} {[%emt 00:00:10]} 0-1

[Event "South Island Championships 2023"]
[Site "Oamaru, New Zealand"]
[Date "????.??.??"]
[Round "4.11"]
[White "Ong, Rommel"]
[Black "Gold, Hamish R"]
[Result "1-0"]
[TimeControl "90 + 30"]
[WhiteFideId "5259630"]
[BlackFideId "4301579"]
[WhiteElo "1852"]
[BlackElo "1758"]

1. e4 {[%clk 01:30:57]} {[%emt 00:00:02]} Nc6 {[%clk 01:29:48]} {[%emt
00:01:12]} 2. d4 {[%clk 01:31:07]} {[%emt 00:00:21]} f5 {[%clk 01:29:52]}
{[%emt 00:00:25]} 3. d5 {[%clk 01:29:56]} {[%emt 00:01:41]} Ne5 {[%clk
01:29:08]} {[%emt 00:01:13]} 4. f4 {[%clk 01:30:09]} {[%emt 00:00:19]} Nf7
{[%clk 01:27:29]} {[%emt 00:02:08]} 5. e5 {[%clk 01:30:07]} {[%emt 00:00:33]}
Nfh6 {[%clk 01:25:31]} {[%emt 00:02:27]} 6. Nf3 {[%clk 01:26:41]} {[%emt
00:03:56]} c6 {[%clk 01:25:23]} {[%emt 00:00:37]} 7. c4 {[%clk 01:26:58]}
{[%emt 00:00:15]} Qb6 {[%clk 01:25:12]} {[%emt 00:00:40]} 8. Nc3 {[%clk
01:25:41]} {[%emt 00:01:48]} d6 {[%clk 01:23:44]} {[%emt 00:01:56]} 9. Bd3
{[%clk 01:24:42]} {[%emt 00:01:30]} g6 {[%clk 01:21:28]} {[%emt 00:02:45]} 10.
Qe2 {[%clk 01:22:46]} {[%emt 00:02:27]} Bg7 {[%clk 01:20:44]} {[%emt 00:01:13]}
11. h3 {[%clk 01:21:00]} {[%emt 00:02:17]} dxe5 {[%clk 01:19:41]} {[%emt
00:01:33]} 12. fxe5 {[%clk 01:21:03]} {[%emt 00:00:27]} Qc7 {[%clk 01:18:34]}
{[%emt 00:01:37]} 13. Bf4 {[%clk 01:20:21]} {[%emt 00:01:12]} Nf7 {[%clk
01:14:42]} {[%emt 00:04:21]} 14. d6 {[%clk 01:18:01]} {[%emt 00:02:52]} Qa5
{[%clk 01:13:54]} {[%emt 00:01:17]} 15. O-O {[%clk 01:16:46]} {[%emt 00:01:46]}
h6 {[%clk 01:13:33]} {[%emt 00:00:50]} 16. a3 {[%clk 01:14:02]} {[%emt
00:03:14]} e6 {[%clk 01:13:09]} {[%emt 00:00:53]} 17. b4 {[%clk 01:14:07]}
{[%emt 00:00:26]} Qd8 {[%clk 01:13:18]} {[%emt 00:00:20]} 18. Rac1 {[%clk
01:11:26]} {[%emt 00:03:13]} g5 {[%clk 01:11:17]} {[%emt 00:02:30]} 19. Bg3
{[%clk 01:09:33]} {[%emt 00:02:23]} h5 {[%clk 01:11:01]} {[%emt 00:00:46]} 20.
c5 {[%clk 01:09:57]} {[%emt 00:00:07]} g4 {[%clk 01:11:08]} {[%emt 00:00:22]}
21. Nh4 {[%clk 01:00:30]} {[%emt 00:09:57]} Bh6 {[%clk 01:07:39]} {[%emt
00:03:59]} 22. Nxf5 {[%clk 00:57:46]} {[%emt 00:03:15]} Bxc1 {[%clk 01:06:32]}
{[%emt 00:01:36]} 23. Rxc1 {[%clk 00:55:43]} {[%emt 00:02:34]} Qg5 {[%clk
01:05:36]} {[%emt 00:01:25]} 24. Rf1 {[%clk 00:55:33]} {[%emt 00:00:40]} exf5
{[%clk 01:05:25]} {[%emt 00:00:40]} 25. e6 {[%clk 00:55:44]} {[%emt 00:00:20]}
Ngh6 {[%clk 01:02:03]} {[%emt 00:03:52]} 26. exf7+ {[%clk 00:53:55]} {[%emt
00:02:20]} Kxf7 {[%clk 01:01:47]} {[%emt 00:00:45]} 27. Bc4+ {[%clk 00:52:35]}
{[%emt 00:01:50]} Kg6 {[%clk 01:00:47]} {[%emt 00:01:29]} 28. h4 {[%clk
00:48:37]} {[%emt 00:04:30]} Qd8 {[%clk 00:57:52]} {[%emt 00:03:24]} 29. Re1
{[%clk 00:45:22]} {[%emt 00:03:45]} Bd7 {[%clk 00:57:05]} {[%emt 00:01:16]} 30.
Qd2 {[%clk 00:45:31]} {[%emt 00:00:22]} Re8 {[%clk 00:57:11]} {[%emt 00:00:23]}
31. Ne2 {[%clk 00:45:37]} {[%emt 00:00:25]} Qf6 {[%clk 00:56:42]} {[%emt
00:00:58]} 32. Nf4+ {[%clk 00:46:04]} {[%emt 00:00:05]} Kh7 {[%clk 00:56:17]}
{[%emt 00:00:54]} 33. Nxh5 {[%clk 00:45:53]} {[%emt 00:00:42]} Rxe1+ {[%clk
00:56:30]} {[%emt 00:00:17]} 34. Bxe1 {[%clk 00:46:06]} {[%emt 00:00:17]} Qe5
{[%clk 00:53:47]} {[%emt 00:03:11]} 35. Bg3 {[%clk 00:44:48]} {[%emt 00:01:48]}
Qa1+ {[%clk 00:53:12]} {[%emt 00:01:05]} 36. Kh2 {[%clk 00:45:06]} {[%emt
00:00:13]} Rf8 {[%clk 00:44:33]} {[%emt 00:09:06]} 37. Qg5 {[%clk 00:44:59]}
{[%emt 00:00:39]} Qd4 {[%clk 00:42:29]} {[%emt 00:02:34]} 38. Bf4 {[%clk
00:44:38]} {[%emt 00:00:51]} g3+ {[%clk 00:42:14]} {[%emt 00:00:45]} 39. Kh3
{[%clk 00:39:05]} {[%emt 00:06:04]} Ng4 {[%clk 00:41:50]} {[%emt 00:00:54]} 40.
Qe7+ {[%clk 00:38:07]} {[%emt 00:01:29]} Kg6 {[%clk 00:40:03]} {[%emt
00:02:16]} 41. Qxf8 {[%clk 00:36:16]} {[%emt 00:02:21]} Nf2+ {[%clk 00:35:29]}
{[%emt 00:05:04]} 42. Kxg3 {[%clk 00:36:01]} {[%emt 00:00:46]} Ne4+ {[%clk
00:35:35]} {[%emt 00:00:24]} 43. Kh2 {[%clk 00:36:15]} {[%emt 00:00:15]} Qxc4
{[%clk 00:34:49]} {[%emt 00:01:16]} 44. Qh6+ {[%clk 00:35:05]} {[%emt
00:01:40]} Kf7 {[%clk 00:35:03]} {[%emt 00:00:16]} 45. Qg7+ {[%clk 00:35:29]}
{[%emt 00:00:06]} Ke8 {[%clk 00:34:54]} {[%emt 00:00:39]} 46. Qe7# {[%clk
00:35:43]} {[%emt 00:00:16]} 1-0

[Event "South Island Championships 2023"]
[Site "Oamaru, New Zealand"]
[Date "????.??.??"]
[Round "4.8"]
[White "Coleman, Phil"]
[Black "Familton, Gregory"]
[Result "1/2-1/2"]
[TimeControl "90 + 30"]
[WhiteFideId "4319443"]
[BlackFideId "4317190"]
[WhiteElo "1872"]
[BlackElo "1751"]

1. e4 {[%emt 00:00:03]} c5 {[%clk 01:30:59]} 2. a3 {[%clk 01:31:20]} {[%emt
00:00:08]} e6 {[%clk 01:30:29]} {[%emt 00:00:59]} 3. Nf3 {[%clk 01:31:33]}
{[%emt 00:00:15]} Nc6 {[%clk 01:30:08]} {[%emt 00:00:54]} 4. d4 {[%clk
01:31:55]} {[%emt 00:00:07]} cxd4 {[%clk 01:30:32]} {[%emt 00:00:07]} 5. Nxd4
{[%clk 01:32:15]} {[%emt 00:00:09]} Qc7 {[%clk 01:30:38]} {[%emt 00:00:24]} 6.
Nc3 {[%clk 01:32:23]} {[%emt 00:00:22]} a6 {[%clk 01:30:47]} {[%emt 00:00:21]}
7. Be3 {[%clk 01:32:17]} {[%emt 00:00:36]} b5 {[%clk 01:31:08]} {[%emt
00:00:09]} 8. g3 {[%clk 01:32:07]} {[%emt 00:00:40]} Bb7 {[%clk 01:31:30]}
{[%emt 00:00:08]} 9. Bg2 {[%clk 01:31:47]} {[%emt 00:00:44]} Nf6 {[%clk
01:30:12]} {[%emt 00:01:54]} 10. f4 {[%clk 01:28:44]} {[%emt 00:03:33]} b4
{[%clk 01:23:02]} {[%emt 00:07:41]} 11. axb4 {[%clk 01:14:11]} {[%emt
00:15:02]} Bxb4 {[%clk 01:23:25]} {[%emt 00:00:07]} 12. O-O {[%clk 01:14:17]}
{[%emt 00:00:22]} Nxd4 {[%clk 01:12:10]} {[%emt 00:11:46]} 13. Bxd4 {[%clk
01:03:28]} {[%emt 00:05:06]} Bxc3 {[%clk 01:12:39]} 14. Bxc3 {[%clk 01:01:59]}
{[%emt 00:08:13]} Qd8 {[%clk 00:55:46]} {[%emt 00:17:24]} 15. Qd4 {[%clk
00:55:15]} {[%emt 00:07:13]} 1/2-1/2

[Event "South Island Championships 2023"]
[Site "Oamaru, New Zealand"]
[Date "????.??.??"]
[Round "4.5"]
[White "Paulsen, Jens"]
[Black "Summers, Paul G"]
[Result "1-0"]
[TimeControl "90 + 30"]
[WhiteFideId "4320476"]
[BlackFideId "3232883"]
[WhiteElo "2080"]
[BlackElo "1799"]

1. e4 {[%clk 01:30:57]} {[%emt 00:00:03]} e5 {[%clk 01:30:55]} {[%emt
00:00:05]} 2. Nf3 {[%clk 01:31:24]} {[%emt 00:00:04]} f5 {[%clk 01:31:21]}
{[%emt 00:00:04]} 3. d4 {[%clk 01:14:22]} {[%emt 00:17:32]} exd4 {[%clk
01:30:50]} {[%emt 00:01:00]} 4. e5 {[%clk 01:09:11]} {[%emt 00:05:42]} Nc6
{[%clk 01:29:03]} {[%emt 00:02:16]} 5. Bc4 {[%clk 01:03:17]} {[%emt 00:06:24]}
d5 {[%clk 01:25:49]} {[%emt 00:03:44]} 6. exd6 {[%clk 01:03:19]} {[%emt
00:00:29]} Qxd6 {[%clk 01:25:30]} {[%emt 00:00:49]} 7. O-O {[%clk 01:03:13]}
{[%emt 00:00:36]} Be7 {[%clk 01:22:28]} {[%emt 00:03:32]} 8. c3 {[%clk
01:00:42]} {[%emt 00:03:02]} Bd7 {[%clk 01:21:02]} {[%emt 00:01:55]} 9. cxd4
{[%clk 00:57:16]} {[%emt 00:03:56]} O-O-O {[%clk 01:19:59]} {[%emt 00:01:33]}
10. Nc3 {[%clk 00:55:27]} {[%emt 00:02:19]} Bf6 {[%clk 01:16:23]} {[%emt
00:04:06]} 11. Nb5 {[%clk 00:29:28]} {[%emt 00:26:29]} Qb4 {[%clk 01:15:59]}
{[%emt 00:00:55]} 12. Qd3 {[%clk 00:28:54]} {[%emt 00:01:03]} a6 {[%clk
01:14:42]} {[%emt 00:01:47]} 13. Bd2 {[%clk 00:27:37]} {[%emt 00:01:47]} Qf8
{[%clk 01:14:14]} {[%emt 00:00:59]} 14. Nxc7 {[%clk 00:25:46]} {[%emt
00:02:21]} Kxc7 {[%clk 01:08:14]} {[%emt 00:06:31]} 15. Bxa6 {[%clk 00:26:09]}
{[%emt 00:00:07]} Qd6 {[%clk 00:56:01]} {[%emt 00:12:42]} 16. Rac1 {[%clk
00:22:37]} {[%emt 00:04:03]} Nge7 {[%clk 00:54:23]} {[%emt 00:02:07]} 17. Bxb7
{[%clk 00:19:01]} {[%emt 00:04:07]} Nd5 {[%clk 00:52:53]} {[%emt 00:01:59]} 18.
Qb5 {[%clk 00:18:19]} {[%emt 00:01:13]} Ra8 {[%clk 00:50:54]} {[%emt 00:02:29]}
19. Rxc6+ {[%clk 00:11:52]} {[%emt 00:06:57]} Bxc6 {[%clk 00:48:40]} {[%emt
00:02:42]} 20. Rc1 {[%clk 00:12:17]} {[%emt 00:00:06]} Ne7 {[%clk 00:48:23]}
{[%emt 00:00:48]} 21. d5 {[%clk 00:11:18]} {[%emt 00:01:28]} Rxa2 {[%clk
00:44:14]} {[%emt 00:04:39]} 22. Bxc6 {[%clk 00:09:22]} {[%emt 00:02:25]} Rxb2
{[%clk 00:44:02]} {[%emt 00:00:43]} 23. Ba5+ {[%emt 00:01:01]} 1-0